Workbook

Sheet Wedding budget
B4: Wedding date:
B5: =TODAY()+365 -> 2020-06-28
B7: Category | C7: Estimated | D7: Actual | E7: Over/Under | F7: Done
B8: Outfits | C8: =Apparel_Total_est -> 9,490.00 | D8: =Apparel_Total_act -> 9,770.00 | E8: =BudgetSummary[[#This Row],[Estimated]]-BudgetSummary[[#This Row],[Actual]] -> -280.00 | F8: =Apparel_done -> No
B9: Reception | C9: =Reception_Total_est -> 1,050.00 | D9: =Reception_Total_act -> 928.00 | E9: =BudgetSummary[[#This Row],[Estimated]]-BudgetSummary[[#This Row],[Actual]] -> 122.00 | F9: =Reception_Done -> Yes
B10: Music | C10: =Music_Entertainment_Total_est -> 600.00 | D10: =Music_Entertainment_Total_act -> 500.00 | E10: =BudgetSummary[[#This Row],[Estimated]]-BudgetSummary[[#This Row],[Actual]] -> 100.00 | F10: =Music_Done -> Yes
B11: Printing | C11: =Printing__Stationery_Total_est -> 935.00 | D11: =Printing__Stationery_Total_act -> 870.00 | E11: =BudgetSummary[[#This Row],[Estimated]]-BudgetSummary[[#This Row],[Actual]] -> 65.00 | F11: =Printing_Done -> No
B12: Photography | C12: =Photography_Total_est -> 1,625.00 | D12: =Photography_Total_act -> 1,575.00 | E12: =BudgetSummary[[#This Row],[Estimated]]-BudgetSummary[[#This Row],[Actual]] -> 50.00 | F12: =Photography_Done -> No
B13: Decorations | C13: =Decorations_Total_est -> 700.00 | D13: =Decorations_Total_act -> 720.00 | E13: =BudgetSummary[[#This Row],[Estimated]]-BudgetSummary[[#This Row],[Actual]] -> -20.00 | F13: =Deco_Done -> Yes
B14: Flowers | C14: =Flowers_Total_est -> 900.00 | D14: =Flowers_Total_act -> 850.00 | E14: =BudgetSummary[[#This Row],[Estimated]]-BudgetSummary[[#This Row],[Actual]] -> 50.00 | F14: =Flowers_Done -> No
B15: Presents | C15: =Gifts_Total_est -> 1,345.00 | D15: =Gifts_Total_act -> 1,075.00 | E15: =BudgetSummary[[#This Row],[Estimated]]-BudgetSummary[[#This Row],[Actual]] -> 270.00 | F15: =Gifts_Done -> No
B16: Travel | C16: =Travel_Transportation_Total_est -> 100.00 | D16: =Travel_Transportation_Total_act -> 165.00 | E16: =BudgetSummary[[#This Row],[Estimated]]-BudgetSummary[[#This Row],[Actual]] -> -65.00 | F16: =Travel_Done -> Yes
B17: Other | C17: =Other_Expenses_Total_est -> 885.00 | D17: =Other_Expenses_Total_act -> 1,021.00 | E17: =BudgetSummary[[#This Row],[Estimated]]-BudgetSummary[[#This Row],[Actual]] -> -136.00 | F17: =Other_Done -> No
B18: Total expenses | C18: =SUBTOTAL(109,BudgetSummary[Estimated]) -> 17,630.00 | D18: =SUBTOTAL(109,BudgetSummary[Actual]) -> 17,474.00 | E18: =SUBTOTAL(109,BudgetSummary[Over/Under]) -> 156.00
B19: Chart showing each category expense percentage is in this cell.

Sheet Expenses
B2: Outfits
B4: Category | C4: Estimated | D4: Actual | E4: Over/Under
B5: Engagement ring(s) | C5: 1,500.00 | D5: 1,500.00 | E5: =Expenses!$C5-Expenses!$D5 -> 0.00
B6: Spouse-to-be 1 ring | C6: 2,000.00 | D6: 2,300.00 | E6: =Expenses!$C6-Expenses!$D6 -> -300.00
B7: Spouse-to-be 1 gown/tuxedo | C7: 3,000.00 | D7: 2,750.00 | E7: =Expenses!$C7-Expenses!$D7 -> 250.00
B8: Spouse-to-be 1 veil/headpiece | C8: 500.00 | D8: 500.00 | E8: =Expenses!$C8-Expenses!$D8 -> 0.00
B9: Spouse-to-be 1 shoes | C9: 350.00 | D9: 300.00 | E9: =Expenses!$C9-Expenses!$D9 -> 50.00
B10: Spouse-to-be 1 jewellery | C10: 400.00 | D10: 550.00 | E10: =Expenses!$C10-Expenses!$D10 -> -150.00
B11: Spouse-to-be 1 hosiery | C11: 20.00 | D11: 20.00 | E11: =Expenses!$C11-Expenses!$D11 -> 0.00
B12: Spouse-to-be 2 ring | C12: 300.00 | D12: 250.00 | E12: =Expenses!$C12-Expenses!$D12 -> 50.00
B13: Spouse-to-be 2 gown/tuxedo | C13: 300.00 | D13: 350.00 | E13: =Expenses!$C13-Expenses!$D13 -> -50.00
B14: Spouse-to-be 2 veil/headpiece | C14: 500.00 | D14: 500.00 | E14: =Expenses!$C14-Expenses!$D14 -> 0.00
B15: Spouse-to-be 2 shoes | C15: 200.00 | D15: 175.00 | E15: =Expenses!$C15-Expenses!$D15 -> 25.00
B16: Spouse-to-be 2 jewellery | C16: 400.00 | D16: 550.00 | E16: =Expenses!$C16-Expenses!$D16 -> -150.00
B17: Spouse-to-be 2 hosiery | C17: 20.00 | D17: 25.00 | E17: =Expenses!$C17-Expenses!$D17 -> -5.00
B18: Clothing Total | C18: =SUBTOTAL(109,Outfits[Estimated]) -> 9,490.00 | D18: =SUBTOTAL(109,Outfits[Actual]) -> 9,770.00 | E18: =SUBTOTAL(109,Outfits[Over/Under]) -> -280.00
D20: ="Are all expenses in "&B2&" category complete?" -> Are all expenses in Outfits category complete? | E20: No
B22: Reception*
B24: Category | C24: Estimated | D24: Actual | E24: Over/Under
B25: Room/hall fees | C25: 200.00 | D25: 150.00 | E25: =Expenses!$C25-Expenses!$D25 -> 50.00
B26: Tables and chairs | C26: 100.00 | D26: 50.00 | E26: =Expenses!$C26-Expenses!$D26 -> 50.00
B27: Food | C27: 0.00 | D27: 0.00 | E27: =Expenses!$C27-Expenses!$D27 -> 0.00
B28: Drinks | C28: 0.00 | D28: 0.00 | E28: =Expenses!$C28-Expenses!$D28 -> 0.00
B29: Linen | C29: 0.00 | D29: 0.00 | E29: =Expenses!$C29-Expenses!$D29 -> 0.00
B30: Cake | C30: 700.00 | D30: 700.00 | E30: =Expenses!$C30-Expenses!$D30 -> 0.00
B31: Favours | C31: 50.00 | D31: 28.00 | E31: =Expenses!$C31-Expenses!$D31 -> 22.00
B32: Staff and gratuities | C32: 0.00 | D32: 0.00 | E32: =Expenses!$C32-Expenses!$D32 -> 0.00
B33: Reception Total | C33: =SUBTOTAL(109,Reception[Estimated]) -> 1,050.00 | D33: =SUBTOTAL(109,Reception[Actual]) -> 928.00 | E33: =SUBTOTAL(109,Reception[Over/Under]) -> 122.00
B34: * Excludes entertainment and decorations
D36: ="Are all expenses in "&B22&" category complete?" -> Are all expenses in Reception* category complete? | E36: Yes
B38: Music/Entertainment
B40: Category | C40: Estimated | D40: Actual | E40: Over/Under
B41: Musicians for ceremony | C41: 400.00 | D41: 400.00 | E41: =Expenses!$C41-Expenses!$D41 -> 0.00
B42: Band/DJ for reception | C42: 200.00 | D42: 100.00 | E42: =Expenses!$C42-Expenses!$D42 -> 100.00
B43: Music/Entertainment Total | C43: =SUBTOTAL(109,Music[Estimated]) -> 600.00 | D43: =SUBTOTAL(109,Music[Actual]) -> 500.00 | E43: =SUBTOTAL(109,Music[Over/Under]) -> 100.00
D45: ="Are all expenses in "&B38&" category complete?" -> Are all expenses in Music/Entertainment category complete? | E45: Yes
B47: Printing/Stationery
B49: Category | C49: Estimated | D49: Actual | E49: Over/Under
B50: Invitations | C50: 500.00 | D50: 450.00 | E50: =Expenses!$C50-Expenses!$D50 -> 50.00
B51: Announcements | C51: 200.00 | D51: 175.00 | E51: =Expenses!$C51-Expenses!$D51 -> 25.00
B52: Thank-you cards | C52: 100.00 | D52: 100.00 | E52: =Expenses!$C52-Expenses!$D52 -> 0.00
B53: Personal stationery | C53: 0.00 | D53: 0.00 | E53: =Expenses!$C53-Expenses!$D53 -> 0.00
B54: Guest book | C54: 25.00 | D54: 25.00 | E54: =Expenses!$C54-Expenses!$D54 -> 0.00
B55: Programmes | C55: 75.00 | D55: 80.00 | E55: =Expenses!$C55-Expenses!$D55 -> -5.00
B56: Reception napkins | C56: 35.00 | D56: 40.00 | E56: =Expenses!$C56-Expenses!$D56 -> -5.00
B57: Matchbooks | C57: 0.00 | D57: 0.00 | E57: =Expenses!$C57-Expenses!$D57 -> 0.00
B58: Calligraphy | C58: 0.00 | D58: 0.00 | E58: =Expenses!$C58-Expenses!$D58 -> 0.00
B59: Printing /Stationery Total | C59: =SUBTOTAL(109,Printing[Estimated]) -> 935.00 | D59: =SUBTOTAL(109,Printing[Actual]) -> 870.00 | E59: =SUBTOTAL(109,Printing[Over/Under]) -> 65.00
D61: ="Are all expenses in "&B47&" category complete?" -> Are all expenses in Printing/Stationery category complete? | E61: No
B63: Photography
B65: Category | C65: Estimated | D65: Actual | E65: Over/Under
B66: Formals | C66: 1,300.00 | D66: 1,300.00 | E66: =Expenses!$C66-Expenses!$D66 -> 0.00
B67: Extra prints | C67: 25.00 | D67: 25.00 | E67: =Expenses!$C67-Expenses!$D67 -> 0.00
B68: Photo albums | C68: 100.00 | D68: 100.00 | E68: =Expenses!$C68-Expenses!$D68 -> 0.00
B69: Videography | C69: 200.00 | D69: 150.00 | E69: =Expenses!$C69-Expenses!$D69 -> 50.00
B70: Photography total | C70: =SUBTOTAL(109,Photography[Estimated]) -> 1,625.00 | D70: =SUBTOTAL(109,Photography[Actual]) -> 1,575.00 | E70: =SUBTOTAL(109,Photography[Over/Under]) -> 50.00
D72: ="Are all expenses in "&B63&" category complete?" -> Are all expenses in Photography category complete? | E72: No
B74: Decorations*
B76: Category | C76: Estimated | D76: Actual | E76: Over/Under
B77: Bows for seating | C77: 0.00 | D77: 0.00 | E77: =Expenses!$C77-Expenses!$D77 -> 0.00
B78: Centrepieces | C78: 300.00 | D78: 320.00 | E78: =Expenses!$C78-Expenses!$D78 -> -20.00
B79: Candles | C79: 100.00 | D79: 75.00 | E79: =Expenses!$C79-Expenses!$D79 -> 25.00
B80: Lighting | C80: 100.00 | D80: 75.00 | E80: =Expenses!$C80-Expenses!$D80 -> 25.00
B81: Balloons | C81: 200.00 | D81: 250.00 | E81: =Expenses!$C81-Expenses!$D81 -> -50.00
B82: Decorations Total | C82: =SUBTOTAL(109,Decorations[Estimated]) -> 700.00 | D82: =SUBTOTAL(109,Decorations[Actual]) -> 720.00 | E82: =SUBTOTAL(109,Decorations[Over/Under]) -> -20.00
B83: *Excludes flowers
D85: ="Are all expenses in "&B74&" category complete?" -> Are all expenses in Decorations* category complete? | E85: Yes
B87: Flowers
B89: Category | C89: Estimated | D89: Actual | E89: Over/Under
B90: Bouquets | C90: 500.00 | D90: 450.00 | E90: =Expenses!$C90-Expenses!$D90 -> 50.00
B91: Buttonholes | C91: 0.00 | D91: 0.00 | E91: =Expenses!$C91-Expenses!$D91 -> 0.00
B92: Corsages | C92: 0.00 | D92: 0.00 | E92: =Expenses!$C92-Expenses!$D92 -> 0.00
B93: Ceremony | C93: 400.00 | D93: 400.00 | E93: =Expenses!$C93-Expenses!$D93 -> 0.00
B94: Reception | C94: 0.00 | D94: 0.00 | E94: =Expenses!$C94-Expenses!$D94 -> 0.00
B95: Flowers Total | C95: =SUBTOTAL(109,Flowers[Estimated]) -> 900.00 | D95: =SUBTOTAL(109,Flowers[Actual]) -> 850.00 | E95: =SUBTOTAL(109,Flowers[Over/Under]) -> 50.00
D97: ="Are all expenses in "&B87&" category complete?" -> Are all expenses in Flowers category complete? | E97: No
B99: Gifts
B101: Category | C101: Estimated | D101: Actual | E101: Over/Under
B102: Attendants | C102: 1,000.00 | D102: 400.00 | E102: =Expenses!$C102-Expenses!$D102 -> 600.00
B103: Spouse-to-be 1 | C103: 150.00 | D103: 200.00 | E103: =Expenses!$C103-Expenses!$D103 -> -50.00
B104: Spouse-to-be 2 | C104: 150.00 | D104: 200.00 | E104: =Expenses!$C104-Expenses!$D104 -> -50.00
B105: Parents | C105: 25.00 | D105: 25.00 | E105: =Expenses!$C105-Expenses!$D105 -> 0.00
B106: Readers/other participants | C106: 20.00 | D106: 250.00 | E106: =Expenses!$C106-Expenses!$D106 -> -230.00
B107: Gifts Total | C107: =SUBTOTAL(109,Presents[Estimated]) -> 1,345.00 | D107: =SUBTOTAL(109,Presents[Actual]) -> 1,075.00 | E107: =SUBTOTAL(109,Presents[Over/Under]) -> 270.00
D109: ="Are all expenses in "&B99&" category complete?" -> Are all expenses in Gifts category complete? | E109: No
B111: Travel/Transport
B113: Category | C113: Estimated | D113: Actual | E113: Over/Under
B114: Limousines/cars | C114: 100.00 | D114: 125.00 | E114: =Expenses!$C114-Expenses!$D114 -> -25.00
B115: Parking | C115: 0.00 | D115: 40.00 | E115: =Expenses!$C115-Expenses!$D115 -> -40.00
B116: Taxis | C116: 0.00 | D116: 0.00 | E116: =Expenses!$C116-Expenses!$D116 -> 0.00
B117: Travel/Transport Total | C117: =SUBTOTAL(109,Travel[Estimated]) -> 100.00 | D117: =SUBTOTAL(109,Travel[Actual]) -> 165.00 | E117: =SUBTOTAL(109,Travel[Over/Under]) -> -65.00
D119: ="Are all expenses in "&B111&" category complete?" -> Are all expenses in Travel/Transport category complete? | E119: Yes
B121: Other expenses
B123: Category | C123: Estimated | D123: Actual | E123: Over/Under
B124: Officiant | C124: 0.00 | D124: 0.00 | E124: =Expenses!$C124-Expenses!$D124 -> 0.00
B125: Church/ceremony site fee | C125: 40.00 | D125: 55.00 | E125: =Expenses!$C125-Expenses!$D125 -> -15.00
B126: Wedding coordinator | C126: 0.00 | D126: 0.00 | E126: =Expenses!$C126-Expenses!$D126 -> 0.00
B127: Rehearsal dinner | C127: 450.00 | D127: 450.00 | E127: =Expenses!$C127-Expenses!$D127 -> 0.00
B128: Engagement party | C128: 20.00 | D128: 50.00 | E128: =Expenses!$C128-Expenses!$D128 -> -30.00
B129: Showers | C129: 30.00 | D129: 20.00 | E129: =Expenses!$C129-Expenses!$D129 -> 10.00
B130: Salon appointments | C130: 45.00 | D130: 46.00 | E130: =Expenses!$C130-Expenses!$D130 -> -1.00
B131: Bachelor/ette parties | C131: 0.00 | D131: 0.00 | E131: =Expenses!$C131-Expenses!$D131 -> 0.00
B132: Brunch | C132: 300.00 | D132: 400.00 | E132: =Expenses!$C132-Expenses!$D132 -> -100.00
B133: Hotel rooms | C133: 0.00 | D133: 0.00 | E133: =Expenses!$C133-Expenses!$D133 -> 0.00
B134: Other expenses total | C134: =SUBTOTAL(109,OtherExpenses[Estimated]) -> 885.00 | D134: =SUBTOTAL(109,OtherExpenses[Actual]) -> 1,021.00 | E134: =SUBTOTAL(109,OtherExpenses[Over/Under]) -> -136.00
D136: ="Are all expenses in "&B121&" category complete?" -> Are all expenses in Other expenses category complete? | E136: No

Sheet Calculations (hidden)
B2: CATEGORY | C2: ESTIMATED | D2: Actual | F2: Estimated | H2: OVER/UNDER
B3: Outfits | C3: =Apparel_Total_est -> 9,490.00 | D3: =Apparel_Total_act -> 9,770.00 | E3: =C3-F3 -> 9,480.00 | F3: =ROUNDUP($C$13/1000,0) -> 10.00 | G3: =$D$13-E3 -> 290 | H3: =D3-C3 -> 280.00
B4: Reception | C4: =Reception_Total_est -> 1,050.00 | D4: =Reception_Total_act -> 928.00 | E4: =C4-F4 -> 1,040.00 | F4: =ROUNDUP($C$13/1000,0) -> 10.00 | G4: =$D$13-E4 -> 8730 | H4: =D4-C4 -> -122.00
B5: Music | C5: =Music_Entertainment_Total_est -> 600.00 | D5: =Music_Entertainment_Total_act -> 500.00 | E5: 590.00 | F5: =ROUNDUP($C$13/1000,0) -> 10.00 | G5: =$D$13-E5 -> 9180 | H5: -100.00
B6: Printing | C6: =Printing__Stationery_Total_est -> 935.00 | D6: =Printing__Stationery_Total_act -> 870.00 | E6: 925.00 | F6: =ROUNDUP($C$13/1000,0) -> 10.00 | G6: =$D$13-E6 -> 8845 | H6: -65.00
B7: Photography | C7: =Photography_Total_est -> 1,625.00 | D7: =Photography_Total_act -> 1,575.00 | E7: 1,615.00 | F7: =ROUNDUP($C$13/1000,0) -> 10.00 | G7: =$D$13-E7 -> 8155 | H7: -50.00
B8: Decorations | C8: =Decorations_Total_est -> 700.00 | D8: =Decorations_Total_act -> 720.00 | E8: 690.00 | F8: =ROUNDUP($C$13/1000,0) -> 10.00 | G8: =$D$13-E8 -> 9080 | H8: 20.00
B9: Flowers | C9: =Flowers_Total_est -> 900.00 | D9: =Flowers_Total_act -> 850.00 | E9: 890.00 | F9: =ROUNDUP($C$13/1000,0) -> 10.00 | G9: =$D$13-E9 -> 8880 | H9: -50.00
B10: Presents | C10: =Gifts_Total_est -> 1,345.00 | D10: =Gifts_Total_act -> 1,075.00 | E10: 1,335.00 | F10: =ROUNDUP($C$13/1000,0) -> 10.00 | G10: =$D$13-E10 -> 8435 | H10: -270.00
B11: Travel | C11: =Travel_Transportation_Total_est -> 100.00 | D11: =Travel_Transportation_Total_act -> 165.00 | E11: 90.00 | F11: =ROUNDUP($C$13/1000,0) -> 10.00 | G11: =$D$13-E11 -> 9680 | H11: 65.00
B12: Other | C12: =Other_Expenses_Total_est -> 885.00 | D12: =Other_Expenses_Total_act -> 1,021.00 | E12: 875.00 | F12: =ROUNDUP($C$13/1000,0) -> 10.00 | G12: =$D$13-E12 -> 8895 | H12: 136.00
B13: Max | C13: =MAX(C3:D12) -> 9770 | D13: =MAX(C3:D12) -> 9770 | F13: =ROUNDUP($C$13/1000,0) -> 10.00
